bitfinex/quotes_BTCUSD_20250508
["timestamp","ask_amount","ask_price","bid_price","bid_amount"]
[1746725560655,0.00514164,101660.0,101650.0,0.25896543]
[1746725560870,0.01966829,101680.0,101670.0,0.23605646]
[1746725561118,0.23603295,101680.0,101670.0,0.56538196]
[1746725561341,0.21638605,101670.0,101660.0,0.54572993]
[1746725561552,0.21638605,101670.0,101660.0,0.56540296]
[1746725561765,0.21638605,101670.0,101660.0,0.19673421]
[1746725561974,0.21638605,101670.0,101660.0,0.55556644]
[1746725562188,0.21652763,101670.0,101660.0,0.56540286]
[1746725562585,0.21652763,101670.0,101660.0,0.55366664]
[1746725562798,0.21652763,101670.0,101660.0,0.29917092]
[1746725563010,0.21652763,101670.0,101660.0,0.65800315]
[1746725563450,0.32189995,101670.0,101660.0,0.0945]
[1746725563700,0.69319995,101670.0,101660.0,0.0945]
[1746725564114,0.71843821,101670.0,101660.0,0.0945]
[1746725564333,0.03934894,101650.0,101640.0,0.87858474]
[1746725564557,0.01967641,101640.0,101630.0,0.60630558]
[1746725564770,0.01967612,101640.0,101630.0,0.23614879]
[1746725564988,0.01967612,101640.0,101630.0,0.58514451]
[1746725565198,0.00983796,101640.0,101630.0,0.98514451]
[1746725565405,0.0440529,101650.0,101640.0,0.21644991]
[1746725565615,0.24769369,101650.0,101640.0,0.22828816]
[1746725565831,0.24769369,101650.0,101640.0,0.54776864]
[1746725566031,0.24769369,101650.0,101640.0,0.21644981]
[1746725566246,0.23184433,101650.0,101640.0,0.20661156]
[1746725566449,0.23184433,101650.0,101640.0,0.22628835]
[1746725566650,0.23184433,101650.0,101640.0,0.2164501]
[1746725566865,0.23184433,101650.0,101640.0,0.22728855]
[1746725567065,0.23184433,101650.0,101640.0,0.22624087]
[1746725567290,0.23184433,101650.0,101640.0,0.21640242]
[1746725567591,0.23184433,101650.0,101640.0,0.22624077]
[1746725568213,0.23184433,101650.0,101640.0,0.22724077]
[1746725568414,0.23184433,101650.0,101640.0,0.20756378]
[1746725569268,0.23184433,101650.0,101640.0,0.22724058]
[1746725569908,0.23184433,101650.0,101640.0,0.23707883]
[1746725570335,0.04492806,101650.0,101640.0,0.23707883]
[1746725570547,0.25151929,101650.0,101640.0,0.22724058]
[1746725570748,0.25151929,101650.0,101640.0,0.20756378]
[1746725570967,0.25151929,101650.0,101640.0,0.21740213]
[1746725571438,0.25151929,101650.0,101640.0,0.21740223]
[1746725571633,0.23315333,101650.0,101640.0,0.22724048]
[1746725571846,0.23315333,101650.0,101640.0,0.20756388]
[1746725572134,0.23315333,101650.0,101640.0,0.21740223]
[1746725572395,0.23315333,101650.0,101640.0,0.21740233]
[1746725572834,0.22331604,101650.0,101640.0,0.002]
[1746725573050,0.21347846,101650.0,101640.0,0.002]
[1746725573278,0.2226664,101650.0,101640.0,0.002]
[1746725573516,0.46552152,101650.0,101640.0,0.002]
[1746725573721,0.38715005,101650.0,101640.0,0.002]
[1746725574554,0.38715005,101650.0,101640.0,0.001]
[1746725574751,0.01967777,101630.0,101620.0,0.99172573]
[1746725575102,0.01967777,101630.0,101620.0,0.61321031]
[1746725575103,0.20663141,101630.0,101620.0,0.61321031]
[1746725575379,0.00984087,101610.0,101600.0,0.1967673]
[1746725575620,0.01968164,101610.0,101600.0,0.22629369]
[1746725575852,0.03422152,101620.0,101610.0,0.21651343]
[1746725576082,0.04420357,101620.0,101610.0,0.21651343]
[1746725576292,0.04420357,101620.0,101610.0,0.21651353]
[1746725576511,0.24101522,101620.0,101610.0,0.19683102]
[1746725576739,0.27547005,101620.0,101610.0,0.22635469]
[1746725576946,0.27547005,101620.0,101610.0,0.21651363]
[1746725577563,0.27547005,101620.0,101610.0,0.20667247]
[1746725577968,0.27547005,101620.0,101610.0,0.21651382]
[1746725578171,0.27547005,101620.0,101610.0,0.21951382]
[1746725578367,0.27547005,101620.0,101610.0,0.24319624]
[1746725578828,0.27547005,101620.0,101610.0,0.22351373]
[1746725579066,0.26562986,101620.0,101610.0,0.22351382]
[1746725579453,0.25578938,101620.0,101610.0,0.22351382]
[1746725579706,0.26562967,101620.0,101610.0,0.24319614]
[1746725580131,0.26562967,101620.0,101610.0,0.23335488]
[1746725580366,0.05208992,101620.0,101610.0,0.5823506]
[1746725580575,0.02900902,101620.0,101610.0,0.60879147]
[1746725580790,0.01916912,101620.0,101610.0,0.62459147]
[1746725581004,0.00932941,101620.0,101610.0,0.97358719]
[1746725581881,0.00014147,101620.0,101610.0,0.27559575]
[1746725582101,0.00998127,101620.0,101610.0,0.62459147]
[1746725582326,0.00014147,101620.0,101610.0,0.62459147]
[1746725584068,0.00014147,101620.0,101610.0,1.37358719]
[1746725584938,0.01982118,101620.0,101610.0,1.0147506]
[1746725585163,0.21663359,101620.0,101610.0,0.21367257]
[1746725585380,0.21663359,101620.0,101610.0,0.22351383]
[1746725585590,0.21663359,101620.0,101610.0,0.23335499]
[1746725585799,0.21663359,101620.0,101610.0,0.24319605]
[1746725585977,0.21663359,101620.0,101610.0,0.59219177]
[1746725586721,0.01982136,101620.0,101610.0,0.60203264]
[1746725587065,0.24615426,101620.0,101610.0,0.60203264]
[1746725587630,0.24615426,101620.0,101610.0,0.59219177]
[1746725587874,0.23631446,101620.0,101610.0,0.59219177]
[1746725588480,0.23117503,101620.0,101600.0,0.42952561]
[1746725588694,0.02952269,101610.0,101600.0,0.97535415]
[1746725589135,0.01968163,101610.0,101600.0,0.97535415]
[1746725589346,0.01968163,101610.0,101600.0,0.99105415]
[1746725589571,0.21663399,101620.0,101610.0,0.21651353]
[1746725589789,0.21663399,101620.0,101610.0,0.56550925]
[1746725590220,0.21663399,101620.0,101610.0,0.55566809]
[1746725590414,0.22133455,101620.0,101610.0,0.34899572]
[1746725590665,0.22133455,101620.0,101610.0,0.70566819]
[1746725590870,0.22133455,101620.0,101610.0,0.70866819]
[1746725591085,0.22133455,101620.0,101610.0,0.71850954]
[1746725591396,0.22133455,101620.0,101610.0,0.70866819]
[1746725592057,0.21149397,101620.0,101610.0,0.70866819]
[1746725592879,0.21149397,101620.0,101610.0,0.71066819]
[1746725593761,0.21149397,101620.0,101610.0,0.72050954]
[1746725594936,0.21149397,101620.0,101610.0,0.7303508]
[1746725595711,0.21149397,101620.0,101610.0,0.36167247]
[1746725595916,0.72122838,101620.0,101610.0,0.155]
[1746725596242,0.72122838,101620.0,101610.0,0.005]
[1746725596243,1.05244128,101620.0,101610.0,0.005]
[1746725596460,1.06269845,101620.0,101610.0,0.005]
[1746725596665,1.11269845,101620.0,101610.0,0.005]
[1746725596878,1.11269845,101620.0,101570.0,0.61652886]
[1746725596879,0.22642163,101580.0,101570.0,0.4]
[1746725597088,0.33178553,101580.0,101570.0,0.4]
[1746725597292,0.33178553,101580.0,101570.0,0.00984542]
[1746725597505,0.33178553,101580.0,101570.0,0.5655949]
[1746725597733,0.33178553,101580.0,101570.0,0.57544003]
[1746725597960,0.33178553,101580.0,101570.0,0.65544003]
[1746725598173,0.33178553,101580.0,101570.0,0.6455949]
[1746725598397,0.33178553,101580.0,101570.0,0.65543993]
[1746725598614,0.33178553,101580.0,101570.0,0.29659918]
[1746725598826,0.33178553,101580.0,101570.0,0.28675395]
[1746725599033,0.33178553,101580.0,101570.0,0.08]
[1746725599251,0.70468553,101580.0,101570.0,0.27690853]
[1746725599495,0.70468553,101580.0,101570.0,0.087]
[1746725599926,0.7322327,101580.0,101570.0,0.28190853]
[1746725600365,0.72238854,101580.0,101570.0,0.09]
[1746725600830,0.72238854,101580.0,101570.0,0.01]
[1746725601240,0.029538,101560.0,101550.0,0.59517671]
[1746725601456,0.01969423,101550.0,101540.0,0.95573487]
[1746725601675,0.03939158,101540.0,101530.0,0.68293994]
[1746725601877,0.04408226,101550.0,101540.0,0.20681485]
[1746725602158,0.04408226,101550.0,101540.0,0.56565861]
[1746725602356,0.24102957,101550.0,101540.0,0.55581057]
[1746725602564,0.24102957,101550.0,101540.0,0.56565861]
[1746725603018,0.24102957,101550.0,101540.0,0.63581066]
[1746725603225,0.24102957,101550.0,101540.0,0.6456588]
[1746725603445,0.0342349,101550.0,101540.0,0.67035469]
[1746725603654,0.04408226,101550.0,101540.0,0.66550684]
[1746725603866,0.04408226,101550.0,101540.0,0.67535478]
[1746725604071,0.04408226,101550.0,101540.0,0.66550684]
[1746725604479,0.04408226,101550.0,101540.0,0.36550684]
[1746725604657,0.04408226,101550.0,101540.0,0.56247355]
[1746725604867,0.04408226,101550.0,101540.0,0.55262551]
[1746725605231,0.24102957,101550.0,101540.0,0.55262551]
[1746725605633,0.24102957,101550.0,101540.0,0.33596243]
[1746725605823,0.23118269,101550.0,101540.0,0.28696671]
[1746725606504,0.24728269,101550.0,101540.0,0.28696671]
[1746725606703,0.24728269,101550.0,101540.0,0.09]
[1746725606926,0.35400244,101550.0,101540.0,0.09]
[1746725607332,0.37230349,101550.0,101540.0,0.28696671]
[1746725607540,0.37230349,101550.0,101540.0,0.01]
[1746725609462,0.71230349,101550.0,101540.0,0.01]
[1746725609945,1.06129921,101550.0,101540.0,0.01]
[1746725610195,1.07815708,101550.0,101540.0,0.005]
[1746725610439,0.57821485,101540.0,101530.0,0.00047146]
[1746725610675,0.67888177,101540.0,101530.0,0.00047146]
[1746725610921,0.69718282,101540.0,101530.0,0.00047146]
[1746725612497,0.66578282,101540.0,101530.0,0.19745757]
[1746725612708,0.66578282,101540.0,101530.0,0.00047146]
[1746725614504,0.69638282,101540.0,101530.0,0.00047146]
[1746725614953,1.04537854,101540.0,101530.0,0.00047146]
[1746725615390,0.69638282,101540.0,101530.0,0.00047146]
[1746725615602,0.70323401,101540.0,101530.0,0.00047146]
[1746725616027,0.71777486,101540.0,101530.0,0.00047146]
[1746725616235,1.06677058,101540.0,101530.0,0.00047146]
[1746725616441,1.1674375,101540.0,101530.0,0.00047146]
[1746725616649,0.82355779,101540.0,101530.0,0.00047146]
[1746725616856,1.18168839,101540.0,101530.0,0.00047146]
[1746725617714,1.19168839,101540.0,101530.0,0.00047146]
[1746725618642,1.18168839,101540.0,101530.0,0.00047146]
[1746725619129,1.18368839,101540.0,101530.0,0.00047146]
[1746725620027,1.18568839,101540.0,101530.0,0.00047146]
[1746725620933,1.08502147,101540.0,101530.0,0.00047146]
[1746725621410,1.09502147,101540.0,101530.0,0.00047146]
[1746725622097,1.08502147,101540.0,101530.0,0.00047146]
[1746725622321,1.14502147,101540.0,101530.0,0.00047146]
[1746725622526,1.13502147,101540.0,101530.0,0.00047146]
[1746725622734,1.23568839,101540.0,101530.0,0.00047146]
[1746725622934,1.13502147,101540.0,101530.0,0.00047146]
[1746725623151,1.13302147,101540.0,101530.0,0.00047146]
[1746725623361,1.13102147,101540.0,101530.0,0.00047146]
[1746725623566,1.13502147,101540.0,101530.0,0.00047146]
[1746725623770,1.13902147,101540.0,101530.0,0.00047146]
[1746725623986,0.3854849,101540.0,101530.0,0.00047146]
[1746725624215,0.16776574,101540.0,101530.0,0.64484896]
[1746725624419,0.37529394,101540.0,101530.0,0.67664906]
[1746725624637,0.37529394,101540.0,101530.0,0.30795513]
[1746725624836,0.36328791,101540.0,101530.0,0.00047146]
[1746725625048,0.4198258,101540.0,101530.0,0.00047146]
[1746725625260,0.36328791,101540.0,101530.0,0.00047146]
[1746725625679,0.36328791,101540.0,101530.0,0.34946718]
[1746725625896,0.36328791,101540.0,101530.0,0.54645329]
[1746725626093,0.35528791,101540.0,101530.0,0.54645329]
[1746725626304,0.36216987,101540.0,101530.0,0.34946718]
[1746725626501,0.37234582,101540.0,101530.0,0.00047146]
[1746725626718,0.37234582,101540.0,101530.0,0.19745757]
[1746725626937,0.06017008,101540.0,101530.0,0.60780002]
[1746725627066,0.07475024,101540.0,101530.0,0.60780022]
[1746725627272,0.08559838,101540.0,101530.0,0.6779514]
[1746725627484,0.09029109,101540.0,101530.0,0.68780012]
[1746725627681,0.07199004,101540.0,101530.0,0.68780022]
[1746725627913,0.07099004,101540.0,101530.0,0.32895578]
[1746725628275,0.01705791,101540.0,101530.0,0.69864903]
[1746725628693,0.00788196,101540.0,101530.0,0.69864903]
[1746725628948,0.00688196,101540.0,101530.0,0.69864903]
[1746725629149,0.04627014,101550.0,101540.0,0.25681045]
[1746725629354,0.04627014,101550.0,101540.0,0.59595842]
[1746725629569,0.05545663,101550.0,101540.0,0.59595842]
[1746725629776,0.05406325,101550.0,101540.0,0.60580607]
[1746725629978,0.27070499,101550.0,101540.0,0.23711485]
[1746725630193,0.36621901,101550.0,101540.0,0.0303]
[1746725630421,0.36621901,101550.0,101540.0,0.19696671]
[1746725630636,0.36621901,101550.0,101540.0,0.56565899]
[1746725630849,0.36721901,101550.0,101540.0,0.56565899]
[1746725631846,0.36821901,101550.0,101540.0,0.56565899]
[1746725632259,0.06590984,101550.0,101540.0,0.61695458]
[1746725632460,0.0757571,101550.0,101540.0,0.61695468]
[1746725632639,0.08560446,101550.0,101540.0,0.60710693]
[1746725633070,0.2608585,101550.0,101540.0,0.58741076]
[1746725633301,0.2608585,101550.0,101540.0,0.5982589]
[1746725633503,0.2608585,101550.0,101540.0,0.58841076]
[1746725633671,0.25101143,101550.0,101540.0,0.59925899]
[1746725633871,0.25101143,101550.0,101540.0,1.00910713]
[1746725634092,0.05406373,101550.0,101540.0,1.01895507]
[1746725634298,0.05406315,101550.0,101540.0,1.01895449]
[1746725634510,0.06391032,101550.0,101540.0,1.00910674]
[1746725634715,0.27070499,101550.0,101540.0,1.00910674]
[1746725634926,0.25240394,101550.0,101540.0,1.00910674]
[1746725635567,0.25240394,101550.0,101540.0,1.01895449]
[1746725635763,0.25240394,101550.0,101540.0,1.00910674]
[1746725635976,0.01606845,101550.0,101540.0,1.37779796]
[1746725636172,0.02887976,101550.0,101540.0,1.02880224]
[1746725636642,0.00918649,101550.0,101540.0,1.37779796]
[1746725636858,0.00918649,101550.0,101540.0,1.81846488]
[1746725637067,0.0492243,101570.0,101560.0,0.25826592]
[1746725637279,0.0492243,101570.0,101560.0,0.60726164]
[1746725637485,0.0492242,101570.0,101560.0,0.60726164]
[1746725637690,0.04922488,101570.0,101560.0,0.60726164]
[1746725637901,0.24613409,101570.0,101560.0,1.00726184]
[1746725638108,0.04922556,101570.0,101560.0,1.01710765]
[1746725638312,0.03938014,101570.0,101560.0,1.02695336]
[1746725638974,0.03938014,101570.0,101560.0,1.02795336]
[1746725639206,0.02953491,101570.0,101560.0,1.02795336]
[1746725639824,0.03938014,101570.0,101560.0,0.92907851]
[1746725641538,0.22644344,101570.0,101560.0,0.89954108]
[1746725641757,0.23628876,101570.0,101560.0,0.90938689]
[1746725641967,0.03938023,101570.0,101560.0,0.90938689]
[1746725642179,0.53628876,101570.0,101560.0,0.88969508]
[1746725642393,0.52644392,101570.0,101560.0,0.50889946]
[1746725642604,0.52644392,101570.0,101560.0,0.52859195]
[1746725642808,0.64165169,101570.0,101560.0,0.52859195]
[1746725643038,0.64165169,101570.0,101560.0,0.13843805]
[1746725643682,0.63696162,101570.0,101560.0,0.001]
[1746725643888,0.62196162,101570.0,101560.0,0.001]
[1746725644191,0.63113202,101570.0,101560.0,0.001]
[1746725644427,0.63800934,101570.0,101560.0,0.001]
[1746725644666,0.65390934,101570.0,101560.0,0.001]
[1746725644872,0.66980934,101570.0,101560.0,0.001]
[1746725645291,0.66293202,101570.0,101560.0,0.001]
[1746725645503,0.65376162,101570.0,101560.0,0.001]
[1746725646265,0.66980837,101570.0,101560.0,0.001]
[1746725646461,1.09647826,101570.0,101560.0,0.001]
[1746725646673,1.00980837,101570.0,101560.0,0.001]
[1746725647617,1.0098085,101570.0,101560.0,0.001]
[1746725648243,1.35880422,101570.0,101560.0,0.001]
[1746725648438,1.37391722,101570.0,101560.0,0.001]
[1746725648667,1.47458414,101570.0,101560.0,0.001]
[1746725649787,1.37691722,101570.0,101560.0,0.001]
[1746725649990,0.24105138,101540.0,101530.0,0.71715598]
[1746725650186,0.24105138,101540.0,101530.0,1.0661517]
[1746725650449,0.24105138,101540.0,101530.0,0.72700489]
[1746725650627,0.24105138,101540.0,101530.0,0.5661517]
[1746725651007,0.24105138,101540.0,101530.0,0.55630259]
[1746725651208,0.24105138,101540.0,101530.0,0.5691516]
[1746725651429,0.24105138,101540.0,101530.0,0.61914923]
[1746725651638,0.25089952,101540.0,101530.0,0.69230051]
[1746725652042,0.25089952,101540.0,101530.0,0.70214933]
[1746725652869,0.24105187,101540.0,101530.0,0.69230051]
[1746725654265,0.24105187,101540.0,101530.0,0.70214933]
[1746725654475,0.24105187,101540.0,101530.0,0.67184933]
[1746725655314,0.04408497,101540.0,101530.0,0.68169795]
[1746725655569,0.25090001,101540.0,101530.0,0.67184933]
[1746725655778,0.04408497,101540.0,101530.0,0.68684933]
[1746725655998,0.0539332,101540.0,101530.0,0.69669805]
[1746725656221,0.06378153,101540.0,101530.0,0.69669805]
[1746725656443,0.0539332,101540.0,101530.0,0.69669737]
[1746725656664,0.26074824,101540.0,101530.0,0.67700003]
[1746725656879,0.2509003,101540.0,101530.0,0.66200003]
[1746725657519,0.04408526,101540.0,101530.0,0.67184875]
[1746725657730,0.05393359,101540.0,101530.0,0.68684875]
[1746725658351,0.2509003,101540.0,101530.0,0.68684875]
[1746725658502,0.05393359,101540.0,101530.0,0.68684875]
[1746725658713,0.03423664,101540.0,101530.0,0.69669737]
[1746725658917,0.03423664,101540.0,101530.0,0.71249737]
[1746725659287,0.04408487,101540.0,101530.0,0.70264875]
[1746725659494,0.03423664,101540.0,101530.0,0.70264875]
[1746725659703,0.03423664,101540.0,101530.0,0.71249737]
[1746725659920,0.03423664,101540.0,101530.0,0.70264875]
[1746725660128,0.04408487,101540.0,101530.0,0.70264875]
[1746725660492,0.04408487,101540.0,101530.0,0.69280003]
[1746725660678,0.04408487,101540.0,101530.0,0.65215121]
[1746725660879,0.03423664,101540.0,101530.0,0.66199993]
[1746725661261,0.04408478,101540.0,101530.0,0.66199993]
[1746725661589,0.04408478,101540.0,101530.0,0.67184855]
[1746725661833,0.02438831,101540.0,101530.0,0.67184855]
[1746725662047,0.04435393,101550.0,101540.0,0.2166627]
[1746725662249,0.37620325,101550.0,101540.0,0.55581076]
[1746725662466,0.22135579,101540.0,101530.0,0.29283531]
[1746725662690,0.03423644,101540.0,101530.0,0.66152886]
[1746725662909,0.23318356,101540.0,101530.0,0.29283522]
[1746725663143,0.23120373,101540.0,101530.0,0.28983541]
[1746725663588,0.23120373,101540.0,101530.0,0.29968461]
[1746725664085,0.23120373,101540.0,101530.0,0.30653372]
[1746725664492,0.23120373,101540.0,101530.0,0.29668461]
[1746725664647,0.23120373,101540.0,101530.0,0.21668461]
[1746725664837,0.23120373,101540.0,101530.0,0.21968461]
[1746725665196,0.22135579,101540.0,101530.0,0.19998611]
[1746725665409,0.22135579,101540.0,101530.0,0.20983541]
[1746725665620,0.22135579,101540.0,101530.0,0.20683541]
[1746725665828,0.22135579,101540.0,101530.0,0.20983541]
[1746725666250,0.22135579,101540.0,101530.0,0.20683541]
[1746725666461,0.32202271,101540.0,101530.0,0.06]
[1746725666679,0.34277448,101540.0,101530.0,0.06]
[1746725666947,1.08160366,101540.0,101530.0,0.06]
[1746725667163,1.05936939,101540.0,101530.0,0.06]
[1746725667374,0.04409021,101520.0,101510.0,0.62657728]
[1746725667579,0.24109572,101520.0,101510.0,0.21677392]
[1746725667780,0.06248963,101520.0,101510.0,0.22662487]
[1746725668037,0.06248963,101520.0,101510.0,0.21677392]
[1746725668236,0.06248963,101520.0,101510.0,0.21677363]
[1746725668493,0.04409021,101520.0,101510.0,0.21977363]
[1746725668716,0.03424013,101520.0,101510.0,0.56876935]
[1746725668952,0.03424013,101520.0,101510.0,0.60417086]
[1746725669171,0.04409021,101520.0,101510.0,0.5786202]
[1746725669396,0.04409011,101520.0,101510.0,0.58847096]
[1746725669619,0.03424013,101520.0,101510.0,0.58847096]
[1746725669827,0.02439034,101520.0,101510.0,0.60132152]
[1746725670050,0.01454085,101520.0,101510.0,0.63152152]
[1746725671761,0.01454085,101520.0,101510.0,0.6465834]
[1746725671915,0.01454085,101520.0,101510.0,0.6468834]
[1746725672953,0.15460342,101530.0,101520.0,0.19700551]
[1746725673153,0.15460323,101530.0,101520.0,0.19700551]
[1746725673681,0.16445253,101530.0,101520.0,0.19700551]
[1746725673888,0.15460323,101530.0,101520.0,0.20685578]
[1746725674101,0.36143864,101530.0,101520.0,0.19700551]
[1746725674310,0.16445253,101530.0,101520.0,0.19700551]
[1746725674571,0.14475412,101530.0,101520.0,0.19700551]
[1746725674764,0.15460332,101530.0,101520.0,0.54600123]
[1746725675519,0.15460332,101530.0,101520.0,0.19700551]
[1746725675761,0.34372064,101530.0,101520.0,0.19700551]
[1746725675973,0.35784081,101530.0,101520.0,0.19700551]
[1746725676177,0.04408972,101520.0,101510.0,0.19707203]
[1746725676297,0.03423984,101520.0,101510.0,0.20692317]
[1746725676504,0.03423984,101520.0,101510.0,0.21677412]
[1746725676698,0.05393961,101520.0,101510.0,0.20692327]
[1746725677173,0.02439025,101520.0,101510.0,0.56576994]
[1746725677370,0.03423984,101520.0,101510.0,0.57562079]
[1746725677580,0.03423984,101520.0,101510.0,0.56876994]
[1746725677778,0.03423984,101520.0,101510.0,0.57862079]
[1746725677953,0.03423984,101520.0,101510.0,0.57176994]
[1746725678155,0.04408953,101520.0,101510.0,0.58162079]
[1746725678613,0.03423984,101520.0,101510.0,0.57176994]
[1746725678952,0.04408963,101520.0,101510.0,0.57176994]
[1746725679126,0.03423984,101520.0,101510.0,0.57176994]
[1746725679293,0.03423984,101520.0,101510.0,0.58162079]
[1746725679496,0.01454085,101520.0,101510.0,0.60807135]
[1746725679700,0.13021317,101530.0,101520.0,0.20685568]
[1746725679907,0.13021317,101530.0,101520.0,0.54600123]
[1746725679908,0.34174013,101530.0,101520.0,0.54600123]
[1746725680099,0.35158933,101530.0,101520.0,0.54600123]
[1746725680309,0.36143863,101530.0,101520.0,0.19700551]
[1746725680509,0.60284623,101520.0,101510.0,0.20307203]
[1746725680714,0.71336332,101520.0,101510.0,0.20307203]
[1746725680888,0.71336332,101520.0,101510.0,0.20007203]
[1746725681484,0.48475781,101520.0,101510.0,0.19707203]
[1746725681689,0.14475781,101520.0,101510.0,0.56577013]
[1746725681900,0.13490764,101520.0,101510.0,0.57562118]
[1746725682181,0.14475703,101520.0,101510.0,0.58847203]
[1746725682389,0.13490705,101520.0,101510.0,0.57862118]
[1746725682593,0.1546071,101520.0,101510.0,0.58547213]
[1746725682969,0.14475693,101520.0,101510.0,0.58547213]
[1746725683179,0.14475693,101520.0,101510.0,0.59532298]
[1746725683379,0.14475693,101520.0,101510.0,0.5953225]
[1746725683582,0.14475693,101520.0,101510.0,0.58547174]
[1746725683786,0.1546071,101520.0,101510.0,0.56576994]
[1746725683989,0.70679316,101520.0,101510.0,4.711e-05]
[1746725684187,0.70481333,101520.0,101510.0,4.711e-05]
[1746725684854,0.71971055,101520.0,101510.0,4.711e-05]
[1746725685660,0.70481333,101520.0,101510.0,4.711e-05]
[1746725685902,0.11051651,101520.0,101510.0,0.56576974]
[1746725686120,0.01969763,101530.0,101520.0,0.21670538]
[1746725686338,0.31735114,101530.0,101520.0,0.54600123]
[1746725686561,0.33189199,101530.0,101520.0,0.19700551]
[1746725687159,0.56139644,101520.0,101510.0,4.711e-05]
[1746725687363,0.57709644,101520.0,101510.0,4.711e-05]
[1746725688012,0.56139644,101520.0,101510.0,4.711e-05]
[1746725689659,0.57124642,101520.0,101510.0,0.19707203]
[1746725689865,1.05240906,101520.0,101510.0,4.711e-05]
[1746725690071,0.70341334,101520.0,101510.0,4.711e-05]
[1746725690268,0.80922595,101520.0,101510.0,4.711e-05]
[1746725690474,0.70855903,101520.0,101510.0,4.711e-05]
[1746725690677,1.14625231,101520.0,101510.0,4.711e-05]
[1746725690956,1.13625231,101520.0,101510.0,4.711e-05]
[1746725691160,0.78725659,101520.0,101510.0,4.711e-05]
[1746725691567,0.59411682,101510.0,101500.0,0.01241757]
[1746725691792,0.66208374,101510.0,101500.0,0.01241757]
[1746725691999,0.67193469,101510.0,101500.0,0.2094619]
[1746725692367,0.66208374,101510.0,101500.0,0.01241757]
[1746725692775,0.02439161,101510.0,101500.0,0.62208335]
[1746725692991,0.25096918,101510.0,101500.0,0.60040973]
[1746725693209,0.22657719,101510.0,101500.0,0.61026175]
[1746725694274,0.22657719,101510.0,101500.0,0.62011367]
[1746725694526,0.02955227,101510.0,101500.0,0.28096958]
[1746725694646,0.23642843,101510.0,101500.0,0.61026175]
[1746725694855,0.21672721,101510.0,101500.0,0.01241757]
[1746725695074,0.23126806,101510.0,101500.0,0.2094619]
[1746725695283,0.77101129,101510.0,101500.0,0.41241757]
[1746725695485,0.66208393,101510.0,101500.0,0.01241757]
[1746725695711,0.67818393,101510.0,101500.0,0.01241757]
[1746725699584,0.69357255,101510.0,101500.0,0.01241757]
[1746725699821,0.69357255,101510.0,101500.0,0.2094619]
[1746725700226,0.66187255,101510.0,101500.0,0.2094619]
[1746725700863,0.36439122,101510.0,101500.0,0.55845762]
[1746725701129,0.7729812,101510.0,101500.0,0.01241757]
[1746725701343,0.69428364,101510.0,101500.0,0.01241757]
[1746725715944,0.70957037,101510.0,101500.0,0.01241757]
[1746725719162,1.05856609,101510.0,101500.0,0.01241757]
[1746725719366,1.15923301,101510.0,101500.0,0.01241757]
[1746725720840,0.70957037,101510.0,101500.0,0.01241757]
[1746725721749,1.0770221,101510.0,101500.0,0.01241757]
[1746725721965,1.22081722,101510.0,101500.0,0.01241757]
[1746725722186,1.24849052,101510.0,101500.0,0.01241757]
[1746725722621,1.25539994,101510.0,101500.0,0.01241757]
[1746725722857,1.39906686,101510.0,101500.0,0.01241757]
[1746725723353,1.40206686,101510.0,101500.0,0.01241757]
[1746725723614,0.01970569,101490.0,101480.0,5e-05]
[1746725723897,2.12390449,101490.0,101480.0,5e-05]
[1746725724132,1.46912466,101490.0,101480.0,5e-05]
[1746725724364,1.57493727,101490.0,101480.0,5e-05]
[1746725724580,1.58184669,101490.0,101480.0,5e-05]
[1746725725030,1.63184669,101490.0,101480.0,5e-05]
[1746725725509,1.63384669,101490.0,101480.0,0.00105]
[1746725725720,1.18418405,101490.0,101480.0,5e-05]
[1746725726149,1.54155126,101490.0,101480.0,5e-05]
[1746725727693,1.53955126,101490.0,101480.0,5e-05]
[1746725727908,1.54155126,101490.0,101480.0,5e-05]
[1746725728131,1.64221818,101490.0,101480.0,5e-05]
[1746725728351,1.64121818,101490.0,101480.0,5e-05]
[1746725728573,0.96124873,101470.0,101460.0,0.002]
[1746725728793,1.06191565,101470.0,101460.0,0.00214109]
[1746725729230,1.08728108,101470.0,101460.0,0.00214109]
[1746725730276,0.74028536,101470.0,101460.0,0.00214109]
[1746725730484,1.08928108,101470.0,101460.0,0.00214109]
[1746725730712,0.69938536,101470.0,101460.0,0.00214109]
[1746725731331,0.7096366,101470.0,101460.0,0.00214109]
[1746725731551,0.3696366,101470.0,101460.0,0.01764109]
[1746725731760,0.35509575,101470.0,101460.0,0.2299631]
[1746725731973,0.15799258,101470.0,101460.0,0.57895882]
[1746725732194,0.01916066,101470.0,101460.0,0.61838175]
[1746725732415,0.01916066,101470.0,101460.0,0.60852633]
[1746725732416,0.03196003,101470.0,101460.0,0.60852633]
[1746725732631,0.02995993,101470.0,101460.0,0.25953061]
[1746725732848,0.03981467,101470.0,101460.0,0.60852643]
[1746725733063,0.02995993,101470.0,101460.0,0.60852643]
[1746725733287,0.02995993,101470.0,101460.0,0.61838194]
[1746725733498,0.04350078,101470.0,101460.0,0.60852643]
[1746725733704,0.04350078,101470.0,101460.0,0.58981472]
[1746725733705,0.06321035,101470.0,101460.0,0.58981472]
[1746725733907,0.05335542,101470.0,101460.0,0.60952604]
[1746725734111,0.03364634,101470.0,101460.0,0.61938146]
[1746725734558,0.03364634,101470.0,101460.0,0.61938155]
[1746725734741,0.05335542,101470.0,101460.0,1.00952604]
[1746725735176,0.04350078,101470.0,101460.0,1.01938155]
[1746725735605,0.03364634,101470.0,101460.0,1.02923697]
[1746725736033,0.04350078,101470.0,101460.0,0.83438558]
[1746725736247,0.04350078,101470.0,101460.0,0.44596713]
[1746725736449,0.04350078,101470.0,101460.0,0.82453036]
[1746725736666,0.04350078,101470.0,101460.0,0.83438587]
[1746725736885,0.03364634,101470.0,101460.0,0.83438587]
[1746725737123,0.04350078,101470.0,101460.0,0.84424129]
[1746725737334,0.04350078,101470.0,101460.0,0.83438587]
[1746725737942,0.04350078,101470.0,101460.0,0.46567903]
[1746725738155,0.05335542,101470.0,101460.0,0.47553474]
[1746725738399,0.04350078,101470.0,101460.0,0.49524586]
[1746725738823,0.04350078,101470.0,101460.0,0.84424158]
[1746725739086,0.02379209,101470.0,101460.0,0.85493046]
[1746725739303,0.02379209,101470.0,101460.0,0.87464158]
[1746725739719,0.03364644,101470.0,101460.0,0.48622323]
[1746725739927,0.02379209,101470.0,101460.0,0.50593474]
[1746725740128,0.02379209,101470.0,101460.0,0.45582323]
[1746725740283,0.02379209,101470.0,101460.0,0.47553494]
[1746725740489,0.33141595,101470.0,101460.0,0.04596713]
[1746725740694,0.144168,101470.0,101460.0,0.04596713]
[1746725740905,0.1645329,101470.0,101460.0,0.04596713]
[1746725741329,0.15269843,101470.0,101460.0,0.05582323]
[1746725741529,0.14284408,101470.0,101460.0,0.42453085]
[1746725741700,0.15269843,101470.0,101460.0,0.41467495]
[1746725742035,0.14284408,101470.0,101460.0,0.44063085]
[1746725742206,0.14284408,101470.0,101460.0,0.44607495]
[1746725742411,0.14284408,101470.0,101460.0,0.45593085]
[1746725742609,0.15269852,101470.0,101460.0,0.44607495]